Cogmind - Beta 13 @@@ ROGUE MODE // 2024.04.30 @ 00:42:12 Player: Falling_Sands Result: Destroyed by D-53 Grenadier with Mini Grenade Launcher Performance ------------- Evolutions (0) 0 Regions Visited (4) 800 Robots Destroyed (19) 95 Value Destroyed (503) 503 Prototype IDs (23) 460 Alien Tech Used (0) 0 Bonus (300) 300 TOTAL SCORE: 2158 Bonus ------- Aligned with FarCom 300 Cogmind --------- Core Integrity 0/250 Matter 300/300 Energy 96/100 System Corruption 0% Temperature Cool (2) Movement Treading (160) Location -9/Mines Parts ------- > --- POWER (1) -------- (None) > --- PROPULSION (2) --- Light Treads Light Treads > --- UTILITY (2) ------ 0b10 Alert Chip Trap Reconfigurator > --- WEAPON (2) ------- (None) > --- INVENTORY (5) ---- Small Storage Unit Sensor Array Medium Laser Small Laser Peak State ------------ > --- POWER ------------ (None) > --- PROPULSION ------- Light Treads Light Treads > --- UTILITY ---------- 0b10 Alert Chip Trap Reconfigurator > --- WEAPON ----------- Heavy EM Pulse Gun Small Laser > --- INVENTORY -------- Light Treads Small Storage Unit Sensor Array Medium Laser Small Laser [Rating: 20] Favorites ----------- Power Improved Ion Engine Engine Improved Ion Engine Propulsion Light Treads Treads Light Treads Wheel Compact Wheel Utility Small Storage Unit Device Trap Reconfigurator Storage Small Storage Unit Processor 0b10 Alert Chip Weapon Small Laser Energy Gun Small Laser Ballistic Gun Light Assault Rifle Build | -11 -10 -10 -10 -9 ------- Run | Yrd Mat Min Exi Min Slots Evolved . | . . . . . Power . | . . . . . Propulsion . | . . . . . Utility . | . . . . . Weapon . | . . . . . Parts Attached 18 | 7 3 5 3 . Power 3 | 1 1 1 . . Engine 3 | 1 1 1 . . Core . | . . . . . Reactor . | . . . . . Propulsion 7 | 3 1 2 1 . Treads 4 | 1 . 2 1 . Leg . | . . . . . Wheel 3 | 2 1 . . . Hover . | . . . . . Flight . | . . . . . Utility 4 | 1 1 . 2 . Device 2 | . 1 . 1 . Storage 1 | 1 . . . . Processor 1 | . . . 1 . Hackware . | . . . . . Protection . | . . . . . Artifact . | . . . . . Weapon 4 | 2 . 2 . . Energy Gun 3 | 1 . 2 . . Energy Cannon . | . . . . . Ballistic Gun 1 | 1 . . . . Ballistic Cannon . | . . . . . Launcher . | . . . . . Special Weapon . | . . . . . Impact Weapon . | . . . . . Slashing Weapon . | . . . . . Piercing Weapon . | . . . . . Special Melee Weapon . | . . . . . Unidentified Prototypes 2 | . . . 2 . Parts Lost 5 | . . 3 . 2 Power 1 | . . 1 . . Propulsion 1 | . . 1 . . Utility 1 | . . 1 . . Weapon 2 | . . . . 2 Highest Loss Streak 2 | . . 2 . 2 To Critical Strikes . | . . . . . Average Slot Usage (%) 82 | . 98 77 79 84 Engine 3 | . 14 6 . . Treads 23 | . . 25 28 28 Wheel 4 | . 28 1 . . Device 7 | . 13 . 8 14 Storage 8 | . 14 14 5 . Processor 5 | . . . 8 14 Energy Gun 25 | . 14 26 28 27 Ballistic Gun 2 | . 14 1 . . Naked Turns . | . . . . . Heaviest Build 17 | 11 17 17 10 5 Greatest Support 40 | 26 26 40 40 40 Greatest Overweight (x) . | . . . . . Average Overweight (x) . | . . . . . Largest Inventory Capacity 8 | 8 8 8 8 5 Average Capacity 6 | 7 8 8 6 5 Most Carried 8 | 4 8 8 8 4 Average Carried 5 | 2 7 5 4 4 Final Capacity 8 | 8 8 8 5 5 Final Carried 8 | 4 8 6 4 4 Class Distribution -------------------- 100% | Mutant Dominant Class ---------------- Mutant | -10/Materials Mutant | -10/Mines Mutant | -10/Exiles Mutant | -9/Mines Resources | -11 -10 -10 -10 -9 ----------- Run | Yrd Mat Min Exi Min Matter Collected 426 | 240 100 56 30 . Remotely . | . . . . . Salvage Created 621 | 43 195 308 . 75 Parts 38 | 4 16 16 . 2 Haulers Intercepted . | . . . . . Recyclers Shooed . | . . . . . Parts Field Recycled . | . . . . . Retrieved Matter . | . . . . . Parts Self-Destructed . | . . . . . Prevented . | . . . . . Kills | -11 -10 -10 -10 -9 ------- Run | Yrd Mat Min Exi Min Combat Hostiles Destroyed 15 | . 5 8 . 2 Guns 12 | . 5 6 . 1 AOE 3 | . . 2 . 1 Classes Destroyed 4 | 1 3 . . . Tunneler 3 | 2 1 . . . Watcher 1 | . 1 . . . Swarmer 4 | . 2 2 . . Grunt 11 | . 3 6 . 2 Best Kill Streak 2 | 1 2 2 . 2 Combat Bots Only 2 | . 2 2 . 2 Max Kills in Single Turn 2 | 1 1 2 . 2 Gunslinging . | . . . . . Exploded 2 | . . 2 . 1 Melee . | . . . . . Uniques/NPCs Destroyed . | . . . . . Combat | -11 -10 -10 -10 -9 -------- Run | Yrd Mat Min Exi Min Hostile Shots Fired 129 | . 53 71 . 5 Missed 41 | . 17 24 . . Damage Taken 1111 | . 220 597 . 294 Core 262 | . 71 121 . 70 Absorbed by Shields 97 | . 90 7 . . Core Remaining (%) 100 | 100 . . . . Volleys Fired 79 | 5 38 35 . 1 Largest 2 | 2 2 2 . 2 Hottest 85 | 70 70 85 . 85 Shots Fired 154 | 10 72 70 . 2 Gun 154 | 10 72 70 . 2 Cannon . | . . . . . Launcher . | . . . . . Special . | . . . . . Kinetic 55 | 5 38 12 . . Thermal 75 | 5 34 35 . 1 Explosive . | . . . . . Electromagnetic 24 | . . 23 . 1 Robot Hit Streak 12 | 3 4 12 . 4 Robot Miss Streak 7 | 1 7 4 . . Penetration Max . | . . . . . Secondary Targets 2 | . 1 1 . . Max Gunslinging Chain 1 | . 1 1 . . Shots Hit Robots 84 | 6 31 45 . 2 Core Hits 34 | 3 12 16 . 3 Critical Kills 1 | 1 . . . . Critical Parts Destroyed . | . . . . . Critical Strikes 4 | 1 2 1 . . Burn 3 | . 2 1 . . Destroy 1 | 1 . . . . Melee Attacks . | . . . . . Impact . | . . . . . Slashing . | . . . . . Piercing . | . . . . . Sneak Attacks . | . . . . . Combat Hostiles . | . . . . . Follow-up Attacks . | . . . . . Damage Inflicted 1182 | 48 352 652 . 130 Guns 967 | 48 351 542 . 26 Cannons . | . . . . . Explosions 214 | . . 110 . 104 Melee . | . . . . . Ramming 1 | . 1 . . . Kinetic 247 | 36 127 84 . . Thermal 726 | 12 224 375 . 115 Explosive . | . . . . . Electromagnetic 208 | . . 193 . 15 Impact . | . . . . . Slashing . | . . . . . Piercing . | . . . . . Highest Corruption . | . . . . . Average Corruption . | . . . . . Corruption Purged . | . . . . . Corruption Blocked . | . . . . . Overload Shots . | . . . . . Overflow Damage . | . . . . . Projectiles . | . . . . . Explosions . | . . . . . Melee . | . . . . . Knockbacks . | . . . . . Impact . | . . . . . Kinetic . | . . . . . Secondary . | . . . . . Self-Inflicted Damage . | . . . . . Shots . | . . . . . Rammed 2 | . 1 . . 1 Targets Rammed 2 | . 1 . . 1 Kicked . | . . . . . Crushed . | . . . . . Highest Temperature 414 | 60 233 414 . 9 Average Temperature 117 | 25 83 157 . 6 Received Heat Transfer 365 | . 40 325 . . Effects 5 | . . 5 . . Shutdowns 1 | . . 1 . . Energy Bleed 1 | . . 1 . . Interference 2 | . . 2 . . Damage (minor) 1 | . . 1 . . Siege Activations . | . . . . . Robots Corrupted . | . . . . . Combat Hostiles . | . . . . . Parts Fried . | . . . . . Impact Corruptions . | . . . . . Robots Melted . | . . . . . Combat Hostiles . | . . . . . Parts Melted 2 | . 1 1 . . Heat Transferred 1821 | 37 814 845 . 125 Parts Sabotaged . | . . . . . Parts Stolen . | . . . . . Parts Stripped . | . . . . . Power Chain Reactions 2 | . . 1 . 1 Alert | -11 -10 -10 -10 -9 ------- Run | Yrd Mat Min Exi Min Peak Influence 215 | 10 152 215 . 45 Initial 6 | . 6 . . . Average 54 | 4 46 75 . 42 Maximum Alert Level 1 | . . 1 . . Low Security (%) 95 | 100 100 87 . 100 Level 1 4 | . . 12 . . Level 2 . | . . . . . Level 3 . | . . . . . Level 4 . | . . . . . Level 5 . | . . . . . High Security . | . . . . . Max Security . | . . . . . Squads Dispatched 2 | . 2 . . . Investigation 1 | . 1 . . . Extermination . | . . . . . Reinforcement 1 | . 1 . . . Assault . | . . . . . Garrison . | . . . . . Intercept . | . . . . . Searches Triggered . | . . . . . Construction Impeded . | . . . . . Haulers Reinforced . | . . . . . Active Scanning Responses . | . . . . . Cargo Convoy Interrupts . | . . . . . Stealth | -11 -10 -10 -10 -9 --------- Run | Yrd Mat Min Exi Min Distress Signals . | . . . . . Communications Jammed . | . . . . . Distress Signals . | . . . . . Times Spotted 40 | . 15 9 . 16 Peak Tracking Total 14 | . 5 3 . 14 Tactical Retreats 5 | . 4 1 . . Traps | -11 -10 -10 -10 -9 ------- Run | Yrd Mat Min Exi Min Traps Triggered . | . . . . . Indirectly . | . . . . . Trap Hack Attempts . | . . . . . Triggered . | . . . . . Disarmed . | . . . . . Reprogrammed . | . . . . . Reused . | . . . . . Traps Extracted . | . . . . . Installed . | . . . . . Triggered . | . . . . . Machines | -11 -10 -10 -10 -9 ---------- Run | Yrd Mat Min Exi Min Machines Disabled . | . . . . . Max in Single Turn . | . . . . . Machines Repaired . | . . . . . Machines Dismantled . | . . . . . Machines Sabotaged . | . . . . . Overloaded Fab Kills . | . . . . . Hacking | -11 -10 -10 -10 -9 --------- Run | Yrd Mat Min Exi Min Machines Accessed 6 | . 2 . 4 . Terminals 2 | . 2 . . . Fabricators . | . . . . . Repair Stations . | . . . . . Recycling Units . | . . . . . Scanalyzers . | . . . . . Garrison Access . | . . . . . Total Hacks 47 | . 7 . 40 . Successful 43 | . 3 . 40 . Failed 4 | . 4 . . . Catastrophic . | . . . . . Database Lockouts . | . . . . . Manual 7 | . . . 7 . Terminals 7 | . 7 . . . Fabricators . | . . . . . Repair Stations . | . . . . . Recycling Units . | . . . . . Scanalyzers . | . . . . . Garrison Access . | . . . . . Terminal Hacks 43 | . 3 . 40 . Record 39 | . . . 39 . Unreport Threat 1 | . 1 . . . Recall Investigation 1 | . 1 . . . Hauler Manifests 1 | . 1 . . . Derelict Proto ID Bank 1 | . . . 1 . Fabricator Hacks . | . . . . . Repair Station Hacks . | . . . . . Recycling Unit Hacks . | . . . . . Scanalyzer . | . . . . . Garrison Access Hacks . | . . . . . Unauthorized Hacks . | . . . . . Terminals . | . . . . . Fabricators . | . . . . . Repair Stations . | . . . . . Recycling Units . | . . . . . Scanalyzers . | . . . . . Garrison Access . | . . . . . Data Cores Recovered . | . . . . . Used . | . . . . . Hacking Detections 2 | . 2 . . . Full Trace Events 1 | . 1 . . . Feedback Events . | . . . . . Feedback Blocked . | . . . . . Robot Schematics Acquired . | . . . . . Robots Built . | . . . . . Authchips . | . . . . . Time . | . . . . . Total Robot Build Rating . | . . . . . Part Schematics Acquired . | . . . . . Parts Built . | . . . . . Authchips . | . . . . . Time . | . . . . . Total Part Build Rating . | . . . . . Parts Repaired . | . . . . . Time . | . . . . . Parts Recycled . | . . . . . Recycled Matter . | . . . . . Retrieved Matter . | . . . . . Retrieved Components . | . . . . . Parts Scanalyzed . | . . . . . Part Schematics Acquired . | . . . . . Parts Damaged . | . . . . . Bothacking | -11 -10 -10 -10 -9 ------------ Run | Yrd Mat Min Exi Min Used RIF Installer . | . . . . . Robots Hacked . | . . . . . Non-combat . | . . . . . Combat . | . . . . . Robot Hacks Applied . | . . . . . Relay Couplers Released . | . . . . . Fabnet Peak Effective % . | . . . . . Robots Rewired . | . . . . . Allies Hacked . | . . . . . Hacks Repelled . | . . . . . Allies | -11 -10 -10 -10 -9 -------- Run | Yrd Mat Min Exi Min Total Allies 3 | . . 3 . . Largest Group 3 | . . 3 3 . Highest-Rated Group 71 | . . 71 71 . Highest-Rated Ally 31 | . . 31 31 . Total Orders . | . . . . . Ally Attacks . | . . . . . Total Damage . | . . . . . Kills . | . . . . . Allies Corrupted . | . . . . . Allies Melted . | . . . . . Intel | -11 -10 -10 -10 -9 ------- Run | Yrd Mat Min Exi Min Robot Analysis Total . | . . . . . Derelict Logs Recovered 2 | . . 1 . 1 Drone Launches . | . . . . . Drone Recoveries . | . . . . . Exploration | -11 -10 -10 -10 -9 ------------- Run | Yrd Mat Min Exi Min Turns Passed 2857 | 117 416 663 1240 421 Spaces Moved 1800 | 86 334 352 767 261 Core 7 | 7 . . . . Treads 1377 | 16 . 333 767 261 Legs . | . . . . . Wheels 416 | 63 334 19 . . Hover . | . . . . . Flight . | . . . . . Fastest Speed 50 | 50 90 90 160 160 Average Speed 143 | 99 90 156 160 160 Slowest Speed 160 | 160 90 160 160 160 Overloaded Moves . | . . . . . Propulsion Burnouts . | . . . . . Robots Hopped . | . . . . . Cave-ins Triggered . | . . . . . Exploration Rate (%) 49 | 4 44 70 73 56 Regions Visited 4 Branch Regions 3 Pre-discovered Areas 1 | . . . 1 . Known Exits Taken . | . . . . . Unknown Exits Taken 4 | 1 1 1 1 . Scrap Searched . | . . . . . Spaces Dug . | . . . . . Terrain Destroyed 10 | . . 5 . 5 Melee . | . . . . . Projectile . | . . . . . AOE 10 | . . 5 . 5 Terrain Rammed . | . . . . . Walls Destroyed . | . . . . . Machines Disabled . | . . . . . Actions | -11 -10 -10 -10 -9 --------- Run | Yrd Mat Min Exi Min Total 1933 | 107 385 398 780 263 Wait 1 | . . . 1 . Move 1796 | 85 333 351 766 261 Hop . | . . . . . Pick Up 24 | 10 7 3 4 . Fast Attach 1 | . 1 . . . Attach 10 | 6 1 2 1 . Detach . | . . . . . Swap 7 | 1 1 3 2 . Drop 10 | . 3 4 3 . Fire 79 | 5 38 35 . 1 Melee . | . . . . . Ram 1 | . 1 . . . Kick . | . . . . . Crush 1 | . . . . 1 Escape Stasis . | . . . . . Rewire 3 | . . . 3 . Trap . | . . . . . Miscellaneous . | . . . . . Route ------- -11/Scrapyard -10/Materials (discovered 2 exits: [*Mat] / [*Min]) -10/Mines (discovered 2 exits: [*Mat] / *Exi) -10/Exiles (discovered 2 exits: [*Min x2]) -9/Mines (discovered 1 exit: [*Mat]) History --------- Turn | Location | Event 2 | -11/Scrapyard | Met Revision 17 50 | -11/Scrapyard | Discovered new exit (range 16) 118 | -11/Scrapyard | Entered Materials 276 | -10/Materials | Discovered new exit (range 7) 343 | -10/Materials | Build established: Mutant 365 | -10/Materials | Discovered new exit (range 16) 534 | -10/Materials | Entered Mines 573 | -10/Mines | Core integrity fell below 50% 895 | -10/Mines | Discovered new exit (range 13) 958 | -10/Mines | Received a Mining Laser from a helpful Derelict 1191 | -10/Mines | Deemed a non-threat by the Exiles lab entrance 1191 | -10/Mines | Discovered new exit (range 5) 1197 | -10/Mines | Entered Exiles 1197 | -10/Exiles | Accompanied by 3 allies 1227 | -10/Exiles | Led the pair of lost Derelicts to a safe place 1247 | -10/Exiles | Met 8R-AWN 1269 | -10/Exiles | Met EX-HEX 1376 | -10/Exiles | Met EX-DEC 1424 | -10/Exiles | Learned location of Zion (-7) 1493 | -10/Exiles | Discovered new exit (range 15) 1614 | -10/Exiles | Met EX-BIN 1646 | -10/Exiles | Aligned with FarCom system 1648 | -10/Exiles | Given EX-Vault access code 1705 | -10/Exiles | Opened EX-Vault 1716 | -10/Exiles | Found Prototype Device 1717 | -10/Exiles | Identified Trap Reconfigurator 1724 | -10/Exiles | Found Prototype Processor 1725 | -10/Exiles | Identified 0b10 Alert Chip 1831 | -10/Exiles | Warned to stay clear of 0b10 Research branches 2173 | -10/Exiles | Discovered new exit (range 14) 2437 | -10/Exiles | Stole two prototypes: 0b10 Alert Chip, Trap Reconfigurator 2437 | -10/Exiles | Entered Mines 2446 | -9/Mines | Met a Derelict bent on vengeance 2493 | -9/Mines | Learned Materials security intel 2552 | -9/Mines | Discovered new exit (range 10) 2829 | -9/Mines | Assembled infested the area 2834 | -9/Mines | Assisted by a Guerilla fighting off Assembled 2843 | -9/Mines | Core integrity fell below 20% 2858 | -9/Mines | Destroyed by D-53 Grenadier with Mini Grenade Launcher Last Messages --------------- K-01 Serf collects debris. as-20195 sneak attacks. R-06 Scavenger destroyed. as-47514 destroyed. as-93380 destroyed. as-35106 destroyed. as-70536 destroyed. HV Slug penetrates Laser Drill. K-01 Serf collects debris. as-20195 destroyed. as-65902 destroyed. as-83367 destroyed. as-17252 destroyed. HV Slug penetrates K-01 Serf. K-01 Serf destroyed. HV Slug penetrates D-53 Grenadier. D-53 Grenadier suffers critical hit (Destroy). Sml. Laser destroyed. The unstable cave ceiling collapses. HV Slug penetrates Earth. Map ----- +----------------------------------------------------+ | ??????????????????????????????????????????? | | ??????????????????????????????????????????? | | ??????????????????????????????????????????? | | ??????????????????????????????????????????? | | ??????????????????????????????????????????? | | ??????????????????????????????????????????? | | ??????????????????????????????????????????? | | ???????????????????????????##?????????????? | | ??????????????????????????? ????????????? | | ?????????????????????????? ???????????? | | ?????????????????????????# ????????????# | | ?????????????????? ??### ???????????## | | ??????????????????? ## ???????????# | | ????????????????????!= #????????????# | | ?????????????????????? # ##????????????# | | ??????????????????????# ###??????????# | | ????????????????????? ######?????# | | ????????????????????? a ##????# | | ?????????????######## ###### | | ?????????????? | | ???????????#### ##### | | ??????????## d ##???? | | ??????????# % d ###????? | | ??????????# a ! ##??????? | | ??????????## # ##???????? | | ???????????#### @ ####### ??????? | | ??????????????# ##?????## % #????? | | ??????????????### ###????????# ##????? | | ????????????????# ??????????# # ##?????? | | ????????????????## ????????? #?#??????? | | ?????????????????## #???????? ?????????? | | ??????????????????? #???????? ?????????? | | ??????????????????? #???????? ??????????? | | ??????????????????? ???????? ??????????? | | ??????????????????? ???????? ??????????? | | ??????????????????? ??????? ??????????? | | ??????????????????? ??????????????????? | | ??????????????????? ##?????????????????? | | ???????????????????? #??????????????????? | | ???????????????????? #???????????????????? | | ???????????????????? ?????????????????????? | | ??????????????????????????????????????????? | | ??????????????????????????????????????????? | | ??????????????????????????????????????????? | | ??????????????????????????????????????????? | | ??????????????????????????????????????????? | | ??????????????????????????????????????????? | | ??????????????????????????????????????????? | | ??????????????????????????????????????????? | | ??????????????????????????????????????????? | +----------------------------------------------------+ Best States ------------- Heat Dissipation 25 Energy Generation 12 Energy Capacity 265 Matter Stores 300 Matter Capacity 300 Sight Range 16 Terrain Scan Density 10 Evasion (%) 50 Recoil Reduction 2 Item Schematics ----------------- None Robot Schematics ------------------ None Fabricated ------------ Nothing Alien Tech Used ----------------- None Achievements -------------- Librarian Tourist Challenges ------------ None Game ------ Seed GrapheneTransportFragment Manual? 0 Play Time 00:34:03 Cumulative 2.8 hours Start 2024.04.30 @ 00:08:26 End 2024.04.30 @ 00:42:12 Sessions 1 Manual Loads 0 Difficulty Rogue Special Mode None Game No. 4 Rogue 4 Adventurer 0 Explorer 0 Win Type - Total 0 Types 0/0/0/0/0/0/0/0/0 Lore% 7 Gallery% 6 Achievement% 7 Wizard Run 0 Options --------- Layout 1 ASCII 0 Keyboard 0 Movement Mouse Keybinds 0 Fullscreen 1 Font 24/Proggy Map View 50x35 Zoom Use 0% Tactical HUD 0 Map Filters NONE Filters NONE Steam 1 RUN: 423bbd4f-272f-4351-bd2c-186b6c09fe5f